bitfinex-derivatives/quotes_SOLF0:USTF0_20251002
["timestamp","ask_amount","ask_price","bid_price","bid_amount"]
[1759370823431,7.27,221.5,221.45,1.73637562]
[1759370823629,1.73637562,221.52,221.46,7.8]
[1759370823829,10.39664282,221.51,221.45,9.53637562]
[1759370824031,7.27,221.51,221.45,9.53637562]
[1759370825035,7.27,221.56,221.49,1.73637562]
[1759370825234,3.12581377,221.55,221.49,1.73637562]
[1759370825537,3.12581377,221.54,221.52,7.8]
[1759370825838,3.12581377,221.57,221.52,7.8]
[1759370826134,3.12581377,221.57,221.44,63.1904]
[1759370826135,3.12380358,221.57,221.44,63.1904]
[1759370826334,3.1238705,221.59,221.54,1.73637562]
[1759370826537,1.73637562,221.63,221.55,7.8]
[1759370826739,3.12358129,221.62,221.57,7.8]
[1759370826939,7.27,221.64,221.57,7.8]
[1759370826940,3.12309079,221.63,221.57,7.8]
[1759370827142,7.27,221.64,221.57,7.8]
[1759370827334,3.11959537,221.64,221.58,1.73637562]
[1759370827540,3.11959537,221.67,221.6,9.53637562]
[1759370827737,7.27,221.69,221.62,1.73637562]
[1759370828239,7.27,221.69,221.6,7.8]
[1759370828433,7.27,221.69,221.61,1.73637562]
[1759370828837,7.27,221.69,221.63,1.73637562]
[1759370829038,7.27,221.69,221.63,9.53637562]
[1759370829435,7.27,221.69,221.61,1.73637562]
[1759370831645,7.27,221.69,221.63,1.73637562]
[1759370831942,5.6652857,221.71,221.63,9.53637562]
[1759370832340,7.27,221.73,221.67,1.73637562]
[1759370832546,7.27,221.77,221.67,7.8]
[1759370832846,9.00637562,221.77,221.68,1.73637562]
[1759370833437,7.27,221.74,221.68,1.73637562]
[1759370833644,7.27,221.72,221.66,1.73637562]
[1759370833844,7.27,221.72,221.64,1.73637562]
[1759370835942,7.27,221.72,221.66,1.73637562]
[1759370836348,1.73637562,221.75,221.68,9.53637562]
[1759370836946,9.00637562,221.76,221.68,9.53637562]
[1759370837144,9.00637562,221.76,221.7,1.73637562]
[1759370837145,7.27,221.76,221.7,1.73637562]
[1759370839646,7.27,221.76,221.68,9.53637562]
[1759370839848,1.73637562,221.75,221.68,9.53637562]
[1759370841242,1.73637562,221.75,221.68,7.8]
[1759370841649,1.73637562,221.75,221.68,9.53637562]
[1759370842144,1.73637562,221.75,221.68,7.8]
[1759370842351,7.27,221.76,221.68,9.53637562]
[1759370842544,9.00637562,221.76,221.68,9.53637562]
[1759370842746,7.27,221.76,221.68,9.53637562]
[1759370842951,7.27,221.76,221.7,1.73637562]
[1759370844351,1.73637562,221.8,221.71,1.73637562]
[1759370844552,1.73637562,221.8,221.71,9.73637562]
[1759370845443,1.73637562,221.8,221.73,1.73637562]
[1759370847050,5.79207562,221.8,221.71,9.73637562]
[1759370847859,1.73637562,221.78,221.71,8.0]
[1759370848157,5.79247562,221.78,221.71,8.0]
[1759370848356,1.73637562,221.76,221.68,1.73637562]
[1759370848550,1.73637562,221.74,221.66,8.0]
[1759370848756,1.73637562,221.74,221.66,9.73637562]
[1759370849148,7.93,221.75,221.66,9.73637562]
[1759370849352,1.73637562,221.74,221.66,9.73637562]
[1759370849549,7.93,221.75,221.68,1.73637562]
[1759370849550,9.66637562,221.75,221.68,1.73637562]
[1759370849853,4.0559,221.79,221.71,8.0]
[1759370849854,9.66637562,221.79,221.71,8.0]
[1759370850047,9.66637562,221.79,221.72,1.73637562]
[1759370850454,1.73637562,221.79,221.72,1.73637562]
[1759370850653,1.73637562,221.81,221.74,1.73637562]
[1759370851154,1.73637562,221.81,221.72,4.0571]
[1759370851356,1.73637562,221.81,221.73,1.73637562]
[1759370851655,9.66637562,221.83,221.75,9.73637562]
[1759370852350,7.93,221.83,221.77,1.73637562]
[1759370852758,9.66637562,221.83,221.75,9.73637562]
[1759370853857,7.93,221.83,221.75,13.79287562]
[1759370854059,7.93,221.83,221.77,1.73637562]
[1759370854450,1.73637562,221.86,221.77,5.79257562]
[1759370854756,7.93,221.87,221.79,1.73637562]
[1759370855053,7.93,221.87,221.79,5.79207562]
[1759370855260,334.28306413,221.89,221.81,1.73637562]
[1759370855558,5.76306413,221.89,221.81,1.73637562]
[1759370855760,5.76306413,221.89,221.81,5.79187562]
[1759370855959,5.76306413,221.89,221.83,1.73637562]
[1759370856860,5.76306413,221.89,221.82,8.0]
[1759370857261,5.76306413,221.89,221.82,9.73637562]
[1759370858561,7.93,221.91,221.82,8.0]
[1759370858755,9.66637562,221.91,221.83,1.73637562]
[1759370858950,7.93,221.91,221.83,1.73637562]
[1759370859459,1.73637562,221.94,221.86,8.0]
[1759370860361,4.053,221.95,221.86,8.0]
[1759370860557,1.73637562,221.94,221.86,8.0]
[1759370860761,1.73637562,221.94,221.87,1.73637562]
[1759370861555,7.93,221.93,221.85,1.73637562]
[1759370861761,1.73637562,221.92,221.85,1.73637562]
[1759370862264,11.9833,221.93,221.85,1.73637562]
[1759370862463,7.93,221.93,221.85,1.73637562]
[1759370862754,7.93,221.93,221.86,8.0]
[1759370862961,7.93,221.93,221.86,9.73637562]
[1759370863162,4.0535,221.92,221.86,9.73637562]
[1759370863460,5.78987562,221.92,221.86,8.0]
[1759370863862,5.79027562,221.9,221.82,8.0]
[1759370864257,1.73637562,221.9,221.82,8.0]
[1759370864957,1.73637562,221.88,221.81,1.73637562]
[1759370865157,1.73637562,221.88,221.78,8.0]
[1759370865158,1.73637562,221.88,221.8,1.73637562]
[1759370867064,4.0544,221.87,221.78,8.0]
[1759370867264,9.66637562,221.86,221.78,8.0]
[1759370867665,1.73637562,221.84,221.78,8.0]
[1759370867865,1.73637562,221.84,221.76,1.73637562]
[1759370868063,4.0551,221.83,221.76,1.73637562]
[1759370868264,1.73637562,221.82,221.74,8.0]
[1759370868467,1.73637562,221.81,221.74,8.0]
[1759370868670,5.79187562,221.81,221.74,8.0]
[1759370869263,1.73637562,221.81,221.74,8.0]
[1759370870362,5.79187562,221.81,221.74,8.0]
[1759370870775,7.93,221.83,221.74,8.0]
[1759370870978,9.66637562,221.83,221.75,1.73637562]
[1759370872382,7.93,221.83,221.75,5.79287562]
[1759370872677,7.93,221.83,221.77,1.73637562]
[1759370872879,7.93,221.83,221.75,1.73637562]
[1759370873277,11.9851,221.83,221.75,1.73637562]
[1759370873476,7.93,221.83,221.75,1.73637562]
[1759370874074,7.93,221.83,221.77,1.73637562]
[1759370875177,7.93,221.83,221.79,4.0557]
[1759370875378,7.93,221.83,221.77,1.73637562]
[1759370875583,7.95,221.89,221.81,1.73637562]
[1759370876583,1.73637562,221.88,221.81,1.73637562]
[1759370876774,4.8311206,221.88,221.81,1.73637562]
[1759370877171,12.0044,221.87,221.79,8.99637562]
[1759370877377,1.73637562,221.86,221.79,7.26]
[1759370877974,7.95,221.82,221.7,4.0574]
[1759370878280,7.95,221.82,221.76,1.73637562]
[1759370879383,7.95,221.82,221.74,7.26]
[1759370879580,7.95,221.82,221.75,1.73637562]
[1759370880280,9.68637562,221.82,221.74,7.26]
[1759370880579,9.68637562,221.82,221.73,1.73637562]
[1759370880782,7.95,221.79,221.68,7.26]
[1759370880981,7.95,221.79,221.72,1.73637562]
[1759370881385,4.0563,221.77,221.71,1.73637562]
[1759370881676,7.95,221.79,221.71,1.73637562]
[1759370881878,1.73637562,221.8,221.71,8.99637562]
[1759370882182,7.95,221.83,221.74,7.26]
[1759370882585,11.04470499,221.83,221.74,7.26]
[1759370883579,7.95,221.81,221.7,6.76178326]
[1759370883780,13.75001263,221.81,221.69,7.26]
[1759370883985,3.09562937,221.8,221.69,7.26]
[1759370884178,7.95,221.77,221.69,7.26]
[1759370887385,7.95,221.77,221.64,7.26]
[1759370887782,7.95,221.74,221.64,7.26]
[1759370887982,7.95,221.71,221.61,4.32310602]
[1759370888686,7.95,221.71,221.62,7.26]
[1759370888889,31.72,221.78,221.62,7.26]
[1759370889078,7.95,221.76,221.62,7.26]
[1759370889987,7.95,221.76,221.64,7.26]
[1759370890188,7.95,221.76,221.66,7.26]
[1759370890377,3.09566029,221.8,221.7,70.377]
[1759370890578,7.95,221.81,221.73,7.26]
[1759370890783,7.95,221.81,221.68,100.16]
[1759370890984,7.95,221.81,221.68,7.26]
[1759370891186,7.95,221.79,221.68,7.26]
[1759370891390,7.95,221.78,221.64,7.26]
[1759370891893,11.0456342,221.78,221.64,7.26]
[1759370892088,7.95,221.75,221.64,11.3185]
[1759370893587,7.95,221.75,221.66,4.0582]
[1759370893793,7.95,221.75,221.64,7.26]
[1759370895691,4.0568,221.74,221.64,7.26]
[1759370896393,7.95,221.75,221.64,7.26]
[1759370896896,7.95,221.75,221.65,4.0584]
[1759370897092,7.95,221.75,221.62,176.0793]
[1759370897093,7.95,221.75,221.66,7.26]
[1759370899192,4.0568,221.74,221.66,7.26]
[1759370899389,7.95,221.75,221.66,7.26]
[1759370901200,12.0066,221.75,221.66,7.26]
[1759370902200,7.95,221.75,221.66,7.26]
[1759370902385,4.0562,221.78,221.66,7.26]
[1759370903592,4.0562,221.78,221.66,11.3182]
[1759370903788,4.0562,221.78,221.66,7.26]
[1759370903992,7.46,221.79,221.66,7.26]
[1759370904289,7.46,221.79,221.7,11.7675]
[1759370905599,7.46,221.79,221.7,7.71]
[1759370905798,7.46,221.79,221.67,4.0579]
[1759370906701,4.0562,221.77,221.67,4.0579]
[1759370908800,7.46,221.79,221.7,7.71]
[1759370909196,10.56463452,221.79,221.7,7.71]
[1759370910201,13.27102921,221.79,221.7,7.71]
[1759370910398,7.42,221.77,221.7,7.71]
[1759370910705,7.42,221.73,221.65,7.71]
[1759370911399,114.6697,221.8,221.65,7.71]
[1759370911400,7.42,221.79,221.66,7.71]
[1759370911604,7.42,221.79,221.68,2.70639469]
[1759370911805,7.42,221.79,221.69,7.71]
[1759370912106,7.42,221.79,221.69,11.7676]
[1759370912804,7.42,221.79,221.7,7.71]
[1759370913106,4.056,221.78,221.7,7.71]
[1759370913402,7.42,221.79,221.7,7.71]
[1759370913609,10.52787839,221.79,221.66,7.71]
[1759370913809,4.0564,221.76,221.66,7.71]
[1759370914400,11.4764,221.76,221.66,7.71]
[1759370915004,7.42,221.76,221.68,7.71]
[1759370915308,7.42,221.76,221.68,10.41639469]
[1759370915905,4.056,221.79,221.72,7.71]
[1759370916505,7.42,221.8,221.72,7.71]
[1759370916904,11.4757,221.8,221.72,7.71]
[1759370918101,7.42,221.77,221.67,7.71]
[1759370918307,7.42,221.77,221.68,2.70639469]
[1759370919404,7.42,221.77,221.71,4.0572]
[1759370920013,7.42,221.77,221.7,7.71]
[1759370921111,4.0565,221.76,221.66,7.71]
[1759370921314,4.0565,221.76,221.66,10.41639469]
[1759370921610,7.16919021,221.76,221.66,10.41639469]
[1759370922008,4.0568,221.74,221.66,7.71]
[1759370922506,7.17143976,221.74,221.66,7.71]
[1759370923216,7.42,221.75,221.66,14.47439469]
[1759370923409,10.53578068,221.75,221.66,14.47439469]
[1759370923915,3.11578068,221.74,221.66,14.47439469]
[1759370924118,3.11578068,221.74,221.66,10.41639469]
[1759370924119,3.11578068,221.73,221.66,10.41639469]
[1759370924308,3.11578068,221.73,221.66,7.71]
[1759370925213,3.11701559,221.73,221.66,7.71]
[1759370925411,3.11701559,221.74,221.66,7.71]
[1759370925718,7.42,221.75,221.66,7.71]
[1759370925917,3.11686111,221.74,221.67,4.058]
[1759370926114,7.42,221.75,221.66,7.71]
[1759370926411,3.11683036,221.74,221.66,7.71]
[1759370926616,3.11683036,221.73,221.66,7.71]
[1759370926814,3.11683036,221.74,221.66,7.71]
[1759370927010,3.11683036,221.73,221.66,7.71]
[1759370927211,4.0568,221.74,221.66,7.71]
[1759370927511,3.11747199,221.73,221.66,7.71]
[1759370927717,4.0568,221.74,221.66,7.71]
[1759370927911,3.11747199,221.73,221.66,7.71]
[1759370928107,4.0568,221.74,221.66,7.71]
[1759370928319,3.11747199,221.73,221.66,7.71]
[1759370928512,3.11804666,221.73,221.66,7.71]
[1759370928907,4.0568,221.74,221.66,7.71]
[1759370929111,3.11809556,221.73,221.66,7.71]
[1759370929316,4.0568,221.74,221.66,7.71]
[1759370929513,3.11817599,221.73,221.66,7.71]
[1759370929716,3.11817599,221.73,221.61,121.26210602]
[1759370929717,3.11824303,221.72,221.62,10.41639469]
[1759370929917,3.11835951,221.71,221.62,10.41639469]
[1759370930115,7.42,221.71,221.62,7.71]
[1759370930418,2.70639469,221.69,221.62,7.71]
[1759370930614,3.11835951,221.68,221.62,7.71]
[1759370931015,2.70639469,221.69,221.62,7.71]
[1759370932119,5.82410654,221.69,221.62,7.71]
[1759370932316,2.70639469,221.69,221.62,7.71]
[1759370932513,5.82410654,221.69,221.62,7.71]
[1759370932714,2.70639469,221.69,221.62,7.71]
[1759370932914,5.82410654,221.69,221.62,7.71]
[1759370933109,6.76419469,221.69,221.62,7.71]
[1759370933314,9.88190654,221.69,221.62,7.71]
[1759370933515,6.76419469,221.69,221.62,7.71]
[1759370933920,3.1169009,221.69,221.62,7.71]
[1759370934116,3.1169009,221.7,221.62,11.7689]
[1759370934320,3.1169009,221.7,221.63,7.34]
[1759370934515,4.0567,221.74,221.64,4.0585]
[1759370934717,3.11601103,221.73,221.65,7.34]
[1759370934918,7.76,221.75,221.65,7.34]
[1759370935622,3.11565813,221.74,221.65,7.34]
[1759370936018,3.11565813,221.74,221.66,12.1]
[1759370936622,7.17235813,221.74,221.66,12.1]
[1759370938526,3.11565813,221.73,221.66,12.1]
[1759370939427,7.17275813,221.73,221.66,12.1]
[1759370939723,7.76,221.72,221.66,12.1]
[1759370940028,10.87565813,221.72,221.66,12.1]
[1759370940330,2.70639469,221.75,221.66,12.1]
[1759370940628,3.11094078,221.74,221.66,12.1]
[1759370940830,3.11094078,221.73,221.66,12.1]
[1759370941029,3.11094078,221.74,221.66,12.1]
[1759370941227,3.11094078,221.73,221.66,12.1]
[1759370941427,3.11094078,221.74,221.66,12.1]
[1759370941629,3.11094078,221.73,221.66,12.1]
[1759370941930,3.11094078,221.74,221.66,12.1]
[1759370942127,3.11094078,221.73,221.66,12.1]
[1759370942324,4.84337296,221.74,221.66,13.83243218]
[1759370942529,3.11094078,221.73,221.66,13.83243218]
[1759370944234,3.11094078,221.73,221.67,7.34]
[1759370944434,3.11094078,221.75,221.69,7.34]
[1759370944631,3.11094078,221.75,221.71,7.34]
[1759370944830,4.84337296,221.79,221.72,1.73243218]
[1759370945035,3.11094078,221.78,221.72,1.73243218]
[1759370945335,3.11094078,221.77,221.72,1.73243218]
[1759370945540,3.11094078,221.78,221.72,9.07243218]
[1759370945736,3.11094078,221.79,221.74,1.73243218]
[1759370945935,3.11094078,221.81,221.74,9.07243218]
[1759370946228,1.73243218,221.82,221.74,9.07243218]
[1759370946431,4.84337296,221.82,221.74,9.07243218]
[1759370946632,1.73243218,221.82,221.74,9.07243218]
[1759370946833,4.84337296,221.82,221.74,9.07243218]
[1759370947034,3.11094078,221.83,221.77,7.34]
[1759370947432,1.73243218,221.86,221.79,7.34]
[1759370947638,4.83998732,221.86,221.79,7.34]
[1759370947937,4.0547,221.85,221.79,7.34]
[1759370948536,4.83998732,221.86,221.79,7.34]
[1759370948736,1.73243218,221.86,221.79,7.34]
[1759370948931,441.06,221.9,221.8,1.73243218]
[1759370949139,4.83822127,221.89,221.81,7.34]
[1759370949541,4.83822127,221.89,221.82,1.73243218]
[1759370949741,112.82,221.9,221.83,7.34]
[1759370949942,112.82,221.9,221.84,1.73243218]
[1759370950344,7.76,221.88,221.77,7.34]
[1759370950541,7.76,221.88,221.8,1.73243218]
[1759370950741,1.73243218,221.87,221.78,1.73243218]
[1759370950939,1.73243218,221.87,221.77,7.34]
[1759370951139,1.73243218,221.87,221.78,1.73243218]
[1759370951339,7.76,221.84,221.77,7.34]
[1759370951534,1.73243218,221.83,221.77,7.34]
[1759370951737,1.73243218,221.8,221.73,7.34]
[1759370952642,7.76,221.81,221.74,1.73243218]
[1759370952834,1.73243218,221.82,221.73,7.34]
[1759370953037,1.73243218,221.82,221.74,1.73243218]
[1759370953441,1.73243218,221.8,221.73,7.34]
[1759370954946,9.49243218,221.82,221.74,1.73243218]
[1759370955142,9.49243218,221.82,221.74,13.80243218]
[1759370957846,11.8145,221.87,221.76,1.73243218]
[1759370958039,1.73243218,221.86,221.79,7.34]
[1759370958645,1.73243218,221.82,221.77,14.91]
[1759370958853,1.73243218,221.8,221.77,14.91]
[1759370959338,7.76,221.79,221.77,14.91]
[1759370959540,1.73243218,221.8,221.77,14.91]
[1759370959740,1.73243218,221.82,221.77,22.25]
[1759370960048,7.76,221.81,221.77,22.25]
[1759370960243,1.73243218,221.82,221.77,22.25]
[1759370960440,1.73243218,221.82,221.78,7.34]
[1759370960643,1.73243218,221.82,221.77,14.91]
[1759370960839,1.73243218,221.82,221.78,7.34]
[1759370961246,1.73243218,221.82,221.77,14.91]
[1759370961450,1.73243218,221.82,221.78,7.96]
[1759370961652,9.14243218,221.82,221.78,7.96]
[1759370961840,1.73243218,221.82,221.79,7.96]
[1759370962148,1.73243218,221.86,221.78,7.96]
[1759370962340,1.73243218,221.86,221.79,1.73243218]
[1759370962543,1.73243218,221.86,221.78,9.69243218]
[1759370962743,4.0547,221.85,221.78,9.69243218]
[1759370963448,4.0547,221.85,221.79,1.73243218]
[1759370968949,4.0551,221.83,221.77,14.91]
[1759370969149,5.78753218,221.83,221.77,14.91]
[1759370969854,5.78753218,221.83,221.77,22.55]
[1759370970349,4.0551,221.83,221.77,22.55]
[1759370970946,9.35243218,221.84,221.77,22.55]
[1759370971154,7.62,221.84,221.77,22.55]
[1759370971454,7.62,221.84,221.78,1.73243218]
[1759370971855,4.0551,221.83,221.77,22.55]
[1759370972054,4.0551,221.83,221.77,24.28243218]
[1759370972757,4.0551,221.83,221.79,7.64]
[1759370973151,11.6751,221.83,221.79,7.64]
[1759370973351,1.73243218,221.81,221.78,12.06]
[1759370973554,7.62,221.8,221.78,12.06]
[1759370974254,1.73243218,221.81,221.78,12.06]
[1759370974653,7.62,221.79,221.78,12.06]
[1759370976254,9.35243218,221.81,221.78,12.06]
[1759370976453,7.62,221.81,221.78,12.06]
[1759370976966,7.62,221.8,221.78,12.06]
[1759370977860,7.62,221.79,221.78,12.06]
[1759370983962,9.35243218,221.79,221.78,12.06]
[1759370984973,11.676,221.78,221.77,2.0035]
[1759370985166,14.77062248,221.78,221.77,0.0001]
[1759370985365,73.81082248,221.78,221.66,7.64]
[1759370985570,1.73243218,221.73,221.66,7.64]
[1759370986566,5.78943218,221.73,221.66,7.64]
[1759370988869,1.73243218,221.73,221.66,7.64]
[1759370989068,1.73243218,221.75,221.67,1.73243218]
[1759370989771,9.35243218,221.75,221.67,1.73243218]
[1759370989971,12.44705466,221.75,221.67,1.73243218]
[1759370990172,9.35243218,221.75,221.67,1.73243218]
[1759370990573,4.057,221.73,221.66,9.37243218]
[1759370990970,1.73243218,221.73,221.66,7.64]
[1759370991172,1.73243218,221.71,221.62,1.73243218]
[1759370991377,1.73243218,221.71,221.63,7.64]
[1759370992575,4.0575,221.7,221.63,7.64]
[1759370994382,1.73243218,221.69,221.63,7.64]
[1759370995075,1.73243218,221.64,221.54,7.29]
[1759370995272,1.73243218,221.64,221.54,9.02243218]
[1759370996377,1.73243218,221.64,221.54,7.29]
[1759370996585,5.79103218,221.64,221.54,9.02243218]
[1759370996982,1.73243218,221.64,221.54,9.02243218]
[1759370997879,1.73243218,221.62,221.54,9.02243218]
[1759370999784,9.01243218,221.62,221.54,9.02243218]
[1759370999985,1.73243218,221.58,221.54,7.29]
[1759371000185,9.01243218,221.58,221.54,7.29]
[1759371000584,7.28,221.57,221.5,7.29]
[1759371000875,1.73243218,221.56,221.5,7.29]
[1759371001274,1.73243218,221.56,221.48,1.73243218]
[1759371001481,4.0602,221.55,221.46,9.02243218]
[1759371001676,7.28,221.57,221.46,9.02243218]
[1759371001677,7.28,221.57,221.46,7.29]
[1759371001878,1.73243218,221.53,221.46,7.29]
[1759371002283,7.28,221.54,221.46,9.02243218]
[1759371002685,7.28,221.59,221.48,1.73243218]
[1759371002887,1.73243218,221.57,221.49,7.29]
[1759371003183,4.0605,221.54,221.49,7.29]
[1759371003382,11.3405,221.54,221.46,1.73243218]
[1759371003683,1.73243218,221.53,221.45,7.29]
[1759371004287,7.28,221.54,221.45,7.29]
[1759371005083,11.3405,221.54,221.45,7.29]
[1759371009295,4.0608,221.52,221.45,7.29]
[1759371009594,7.28,221.54,221.45,7.29]
[1759371010684,11.3405,221.54,221.45,7.29]
[1759371012091,7.28,221.54,221.45,7.29]
[1759371014188,7.28,221.58,221.48,2.71202525]
[1759371014493,7.28,221.58,221.49,7.29]
[1759371015394,4.0599,221.57,221.49,7.29]
[1759371016094,7.28,221.58,221.49,7.29]
[1759371016395,4.0593,221.61,221.49,7.29]
[1759371016595,9.99202525,221.62,221.49,7.29]
[1759371016798,11.3395,221.59,221.49,7.29]
[1759371018393,11.3395,221.59,221.49,11.3513]
[1759371018592,7.28,221.7,221.58,7.29]
[1759371019098,2.71202525,221.64,221.58,7.29]
[1759371019295,7.28,221.6,221.5,7.29]
[1759371019596,11.3393,221.6,221.5,7.29]
[1759371020094,11.3393,221.6,221.5,11.351]
[1759371020292,11.3393,221.6,221.51,7.29]
[1759371020997,4.0593,221.6,221.51,7.29]
[1759371021897,11.3389,221.63,221.52,4.0607]
[1759371022098,7.35,221.67,221.54,7.44]
[1759371023599,4.0582,221.66,221.54,11.5003]
[1759371024397,4.0578,221.69,221.57,7.25]
[1759371026299,8.01,221.68,221.57,7.25]
[1759371029405,8.01,221.68,221.59,7.25]
[1759371029807,8.01,221.68,221.53,7.25]
[1759371030103,8.01,221.65,221.53,7.25]
[1759371030503,11.11734972,221.65,221.53,7.25]
[1759371030802,8.01,221.65,221.53,7.25]
[1759371031004,11.1173367,221.65,221.53,7.25]
[1759371031204,8.01,221.65,221.53,7.25]
[1759371031606,4.0586,221.64,221.53,7.25]
[1759371031906,8.01,221.65,221.53,7.25]
[1759371032105,11.11834888,221.65,221.53,7.25]
[1759371033207,11.11834888,221.65,221.39,144.41864707]
[1759371033208,2.71202525,221.63,221.45,7.25]
[1759371033510,10.72202525,221.6,221.47,7.25]
[1759371033711,10.72202525,221.6,221.48,4.0615]
[1759371033911,8.01,221.6,221.49,7.25]
[1759371034608,8.01,221.6,221.5,4.0611]
[1759371035601,8.01,221.6,221.51,7.25]
[1759371036206,8.01,221.6,221.52,4.0607]
[1759371036713,8.01,221.6,221.53,7.25]
[1759371039905,8.01,221.66,221.57,9.96202525]
[1759371040412,8.01,221.66,221.57,14.02172525]
[1759371041716,12.0683,221.66,221.57,7.25]
[1759371042018,10.72202525,221.66,221.54,6.77232525]
[1759371042516,4.0587,221.64,221.54,6.77232525]
[1759371043718,12.0687,221.64,221.54,6.77232525]
[1759371044215,2.71202525,221.66,221.53,7.25]
[1759371044216,8.01,221.61,221.53,7.25]
[1759371045616,8.01,221.61,221.53,11.3106]
[1759371046018,8.01,221.61,221.53,7.25]
[1759371047111,12.0692,221.61,221.53,7.25]
[1759371047815,8.01,221.61,221.53,7.25]
[1759371048212,8.01,221.61,221.53,11.3106]
[1759371049412,12.0685,221.65,221.55,7.25]
[1759371049618,8.01,221.65,221.55,7.25]
[1759371049816,11.12731071,221.65,221.55,7.25]
[1759371050016,8.01,221.65,221.55,7.25]
[1759371051418,8.01,221.63,221.55,7.25]
[1759371053125,8.01,221.63,221.55,11.31]
[1759371054419,10.97955667,221.67,221.58,7.86]
[1759371054620,7.86,221.67,221.58,7.86]
[1759371055024,7.86,221.67,221.61,4.0591]
[1759371055223,11.9173,221.71,221.61,11.9191]
[1759371055428,3.12075095,221.7,221.61,11.9191]
[1759371055829,7.86,221.71,221.63,4.0587]
[1759371056620,7.86,221.71,221.64,7.86]
[1759371056824,7.86,221.76,221.66,10.57202525]
[1759371057023,7.86,221.76,221.67,7.86]
[1759371057423,10.57202525,221.76,221.63,10.57202525]
[1759371057625,4.0569,221.73,221.63,10.57202525]
[1759371057824,7.86,221.72,221.63,10.57202525]
[1759371058225,7.86,221.72,221.63,14.63072525]
[1759371058429,7.86,221.72,221.63,11.9187]
[1759371059734,14.62852525,221.76,221.65,4.0583]
[1759371059936,11.9165,221.76,221.66,7.86]
[1759371060536,7.86,221.76,221.66,7.86]
[1759371060736,7.86,221.74,221.62,10.57202525]
[1759371060934,10.99338548,221.74,221.63,7.86]
[1759371061133,4.0571,221.72,221.63,7.86]
[1759371061742,7.86,221.74,221.65,7.86]
[1759371062137,7.86,221.74,221.65,10.57202525]
[1759371062339,11.9169,221.74,221.65,10.57202525]
[1759371062736,11.9169,221.74,221.65,7.86]
[1759371063447,7.86,221.74,221.65,14.63032525]
[1759371063641,7.86,221.74,221.66,7.86]
[1759371063836,4.0562,221.77,221.66,7.86]
[1759371064745,7.86,221.78,221.69,7.86]
[1759371065643,7.86,221.78,221.69,11.9176]
[1759371066040,7.86,221.78,221.7,7.86]
[1759371066245,7.86,221.78,221.72,1.73132198]
[1759371066443,4.0553,221.83,221.75,7.86]
[1759371066444,9.59132198,221.83,221.75,7.86]
[1759371067239,9.59132198,221.83,221.76,1.73132198]
[1759371067744,9.59132198,221.83,221.71,31.04]
[1759371067745,1.73132198,221.85,221.78,9.59132198]
[1759371069940,13.8143096,221.87,221.8,1.73132198]
[1759371070534,7.86,221.87,221.8,1.73132198]
[1759371070940,7.86,221.87,221.81,7.86]
[1759371071753,1.73132198,221.9,221.82,1.73132198]
[1759371072245,7.86,221.91,221.82,1.73132198]
[1759371072446,9.59132198,221.91,221.82,1.73132198]
[1759371074144,9.59132198,221.91,221.81,7.86]
[1759371074343,7.86,221.88,221.81,9.59132198]
[1759371074947,7.86,221.88,221.84,7.86]
[1759371075343,1.73132198,221.91,221.83,9.59132198]
[1759371075549,7.86,221.92,221.83,9.59132198]